[Event "*** Titled Tuesday Blitz"]
[Site "Chess.com"]
[Date "2021.02.16"]
[Round "9"]
[White "catzapto"]
[Black "LenkaPtacnikova"]
[Result "1-0"]
[WhiteElo "2101"]
[BlackElo "2086"]
[TimeControl "180+1"]
[EndTime "11:48:04 PST"]
[Termination "catzapto won by checkmate"]

1. e4 {[%clk 0:02:51.8]} 1... c5 {[%clk 0:02:58.7]} 2. Nf3 {[%clk 0:02:50.8]}
2... e6 {[%clk 0:02:59.1]} 3. c3 {[%clk 0:02:50.6]} 3... Nf6 {[%clk 0:02:55.1]}
4. e5 {[%clk 0:02:49.9]} 4... Nd5 {[%clk 0:02:55.8]} 5. d4 {[%clk 0:02:50.8]}
5... cxd4 {[%clk 0:02:56.2]} 6. cxd4 {[%clk 0:02:51.7]} 6... d6 {[%clk
0:02:56.6]} 7. Nc3 {[%clk 0:02:51.6]} 7... Nxc3 {[%clk 0:02:54.7]} 8. bxc3
{[%clk 0:02:50.6]} 8... dxe5 {[%clk 0:02:55]} 9. Nxe5 {[%clk 0:02:51.5]} 9...
Nc6 {[%clk 0:02:52.8]} 10. Bb5 {[%clk 0:02:48.6]} 10... Bd7 {[%clk 0:02:52.7]}
11. Nxd7 {[%clk 0:02:47.4]} 11... Qxd7 {[%clk 0:02:52.6]} 12. O-O {[%clk
0:02:47.4]} 12... Bd6 {[%clk 0:02:50]} 13. Re1 {[%clk 0:02:31.1]} 13... O-O
{[%clk 0:02:49]} 14. Qg4 {[%clk 0:02:23.9]} 14... Qc7 {[%clk 0:02:37]} 15. h4
{[%clk 0:02:02.1]} 15... Kh8 {[%clk 0:02:24.9]} 16. Bd2 {[%clk 0:01:49.7]} 16...
Rac8 {[%clk 0:02:22.5]} 17. h5 {[%clk 0:01:44.7]} 17... h6 {[%clk 0:02:21.5]}
18. Bd3 {[%clk 0:01:33.4]} 18... f5 {[%clk 0:02:17.2]} 19. Qe2 {[%clk
0:00:38.9]} 19... Rf6 {[%clk 0:02:13.3]} 20. Rac1 {[%clk 0:00:34.1]} 20... Bf4
{[%clk 0:01:51.5]} 21. Bxf4 {[%clk 0:00:25.7]} 21... Qxf4 {[%clk 0:01:50.8]} 22.
Qe3 {[%clk 0:00:26.2]} 22... Qd6 {[%clk 0:01:33.4]} 23. Bc4 {[%clk 0:00:20.3]}
23... Na5 {[%clk 0:01:05.7]} 24. Bxe6 {[%clk 0:00:19.8]} 24... Re8 {[%clk
0:01:05.4]} 25. d5 {[%clk 0:00:19.6]} 25... Nc4 {[%clk 0:01:05.3]} 26. Qd4
{[%clk 0:00:19.3]} 26... Qa6 {[%clk 0:00:51.5]} 27. Rb1 {[%clk 0:00:15]} 27...
Rd8 {[%clk 0:00:49.8]} 28. Rb4 {[%clk 0:00:13.1]} 28... Nb6 {[%clk 0:00:44.1]}
29. a4 {[%clk 0:00:10.9]} 29... Qa5 {[%clk 0:00:26.6]} 30. Reb1 {[%clk
0:00:09.8]} 30... Rxe6 {[%clk 0:00:19.8]} 31. Rb5 {[%clk 0:00:08.3]} 31... Qa6
{[%clk 0:00:18.7]} 32. a5 {[%clk 0:00:06.1]} 32... Nc8 {[%clk 0:00:17]} 33. Rxb7
{[%clk 0:00:04.9]} 33... Red6 {[%clk 0:00:15.5]} 34. Qxg7# {[%clk 0:00:04.3]}
1-0

[Event "*** Titled Tuesday Blitz"]
[Site "Chess.com"]
[Date "2021.02.16"]
[Round "9"]
[White "WPWPWP-2015"]
[Black "A-S-00"]
[Result "0-1"]
[WhiteElo "2470"]
[BlackElo "2335"]
[TimeControl "180+1"]
[EndTime "11:48:05 PST"]
[Termination "A-S-00 won on time"]

1. e4 {[%clk 0:02:51.1]} 1... c5 {[%clk 0:02:58]} 2. Nf3 {[%clk 0:02:44.8]} 2...
Nc6 {[%clk 0:02:53.1]} 3. Bc4 {[%clk 0:02:41.6]} 3... e6 {[%clk 0:02:48.2]} 4.
O-O {[%clk 0:02:40.2]} 4... Nf6 {[%clk 0:02:45.2]} 5. e5 {[%clk 0:02:38.3]} 5...
Ng4 {[%clk 0:02:42.2]} 6. Re1 {[%clk 0:02:36.2]} 6... Qc7 {[%clk 0:02:41.9]} 7.
Qe2 {[%clk 0:02:35]} 7... d6 {[%clk 0:02:39.1]} 8. exd6 {[%clk 0:02:31.9]} 8...
Bxd6 {[%clk 0:02:36.4]} 9. h3 {[%clk 0:02:19.5]} 9... Nge5 {[%clk 0:02:29.1]}
10. Nxe5 {[%clk 0:02:14.6]} 10... Nxe5 {[%clk 0:02:28.9]} 11. Bb5+ {[%clk
0:02:08]} 11... Nc6 {[%clk 0:02:26.2]} 12. Qe4 {[%clk 0:01:49.2]} 12... Bd7
{[%clk 0:02:22.6]} 13. Nc3 {[%clk 0:01:43.9]} 13... O-O {[%clk 0:02:19.5]} 14.
a3 {[%clk 0:01:31.8]} 14... a6 {[%clk 0:02:11.9]} 15. Bd3 {[%clk 0:01:25.1]}
15... f5 {[%clk 0:02:08.5]} 16. Qh4 {[%clk 0:01:20.1]} 16... Rf6 {[%clk
0:02:03.6]} 17. Bf1 {[%clk 0:01:06.9]} 17... Rh6 {[%clk 0:01:55.7]} 18. Qc4
{[%clk 0:01:00]} 18... Nd4 {[%clk 0:01:54.5]} 19. Ne2 {[%clk 0:00:46]} 19...
Rxh3 {[%clk 0:01:40.6]} 20. gxh3 {[%clk 0:00:39.8]} 20... Nf3+ {[%clk
0:01:39.4]} 21. Kh1 {[%clk 0:00:39.2]} 21... Nxe1 {[%clk 0:01:37.9]} 22. Bg2
{[%clk 0:00:23.6]} 22... Nxg2 {[%clk 0:01:34.1]} 23. Kxg2 {[%clk 0:00:23.2]}
23... b5 {[%clk 0:01:32.7]} 24. Qh4 {[%clk 0:00:20.9]} 24... Bc6+ {[%clk
0:01:24.9]} 25. Kf1 {[%clk 0:00:18.7]} 25... Rf8 {[%clk 0:01:18]} 26. d4 {[%clk
0:00:17.4]} 26... Be4 {[%clk 0:01:12.7]} 27. Bf4 {[%clk 0:00:13.7]} 27... cxd4
{[%clk 0:01:09.5]} 28. Bxd6 {[%clk 0:00:11.1]} 28... Qxd6 {[%clk 0:01:09.2]} 29.
Rd1 {[%clk 0:00:09.2]} 29... e5 {[%clk 0:01:03.3]} 30. Qg3 {[%clk 0:00:07.7]}
30... f4 {[%clk 0:01:00.5]} 31. Qg5 {[%clk 0:00:04.7]} 31... Bxc2 {[%clk
0:00:57.2]} 32. Rd2 {[%clk 0:00:04.9]} 32... h6 {[%clk 0:00:47.8]} 33. Qh4
{[%clk 0:00:02.6]} 33... Bf5 {[%clk 0:00:44.5]} 34. f3 {[%clk 0:00:02]} 34...
Rc8 {[%clk 0:00:35.1]} 35. Kg2 {[%clk 0:00:01.8]} 35... g5 {[%clk 0:00:28.1]}
36. Qe1 {[%clk 0:00:01.3]} 36... Qe6 {[%clk 0:00:26.4]} 0-1

[Event "*** Titled Tuesday Blitz"]
[Site "Chess.com"]
[Date "2021.02.16"]
[Round "9"]
[White "kayrakamer"]
[Black "ChristopherYoo"]
[Result "1-0"]
[WhiteElo "2731"]
[BlackElo "2884"]
[TimeControl "180+1"]
[EndTime "11:48:06 PST"]
[Termination "kayrakamer won by resignation"]

1. e4 {[%clk 0:03:00.9]} 1... c5 {[%clk 0:02:58]} 2. Nf3 {[%clk 0:03:01.2]} 2...
e6 {[%clk 0:02:57.9]} 3. d4 {[%clk 0:02:59.9]} 3... cxd4 {[%clk 0:02:58.8]} 4.
Nxd4 {[%clk 0:03:00.6]} 4... Nf6 {[%clk 0:02:59.1]} 5. Bd3 {[%clk 0:03:00]} 5...
Be7 {[%clk 0:02:58.4]} 6. O-O {[%clk 0:02:59.6]} 6... d5 {[%clk 0:02:58.1]} 7.
e5 {[%clk 0:02:56.2]} 7... Nfd7 {[%clk 0:02:57.9]} 8. Qe2 {[%clk 0:02:54.5]}
8... Qb6 {[%clk 0:02:49.5]} 9. Qg4 {[%clk 0:02:37.4]} 9... Kf8 {[%clk
0:02:17.3]} 10. Nf3 {[%clk 0:02:15.2]} 10... Nc6 {[%clk 0:02:13.3]} 11. Re1
{[%clk 0:02:07.8]} 11... Qb4 {[%clk 0:01:33.4]} 12. Qg3 {[%clk 0:01:51.2]} 12...
Nc5 {[%clk 0:01:31.3]} 13. Nc3 {[%clk 0:01:39.9]} 13... h5 {[%clk 0:01:20.1]}
14. h3 {[%clk 0:01:23.3]} 14... h4 {[%clk 0:01:19]} 15. Qh2 {[%clk 0:01:23.7]}
15... Bd7 {[%clk 0:01:10.2]} 16. a3 {[%clk 0:01:19.6]} 16... Qb6 {[%clk
0:01:09.4]} 17. Be3 {[%clk 0:01:12.3]} 17... Qd8 {[%clk 0:00:50.9]} 18. Bf1
{[%clk 0:01:08]} 18... Rc8 {[%clk 0:00:49.7]} 19. b4 {[%clk 0:01:03]} 19... Ne4
{[%clk 0:00:48.2]} 20. Nxe4 {[%clk 0:01:03.1]} 20... dxe4 {[%clk 0:00:49.1]} 21.
Nd4 {[%clk 0:01:04]} 21... Nxd4 {[%clk 0:00:44.8]} 22. Bxd4 {[%clk 0:01:04.4]}
22... Rxc2 {[%clk 0:00:44.5]} 23. Rad1 {[%clk 0:00:55.7]} 23... Bc6 {[%clk
0:00:44]} 24. Bxa7 {[%clk 0:00:54.5]} 24... Qa8 {[%clk 0:00:43.6]} 25. Bc5
{[%clk 0:00:39.6]} 25... Bxc5 {[%clk 0:00:39.6]} 26. bxc5 {[%clk 0:00:40.5]}
26... Rxc5 {[%clk 0:00:39.3]} 27. Qf4 {[%clk 0:00:38.3]} 27... Rd5 {[%clk
0:00:38.1]} 28. Rxd5 {[%clk 0:00:37.6]} 28... Bxd5 {[%clk 0:00:37.9]} 29. Rc1
{[%clk 0:00:36.8]} 29... Qd8 {[%clk 0:00:36]} 30. Bc4 {[%clk 0:00:26]} 30...
Bxc4 {[%clk 0:00:21]} 31. Rxc4 {[%clk 0:00:25.8]} 31... Rh5 {[%clk 0:00:21.1]}
32. Qxe4 {[%clk 0:00:19.3]} 32... Qd7 {[%clk 0:00:09.7]} 33. Qc2 {[%clk
0:00:12.5]} 33... Qb5 {[%clk 0:00:01.9]} 34. Rc8+ {[%clk 0:00:11.7]} 34... Ke7
{[%clk 0:00:01.3]} 35. Qc7+ {[%clk 0:00:11.6]} 1-0

[Event "*** Titled Tuesday Blitz"]
[Site "Chess.com"]
[Date "2021.02.16"]
[Round "9"]
[White "AlexNovitz"]
[Black "MF1966Idrisov"]
[Result "0-1"]
[WhiteElo "2189"]
[BlackElo "2347"]
[TimeControl "180+1"]
[EndTime "11:48:06 PST"]
[Termination "MF1966Idrisov won by resignation"]

1. e4 {[%clk 0:03:00.9]} 1... d5 {[%clk 0:02:59.7]} 2. exd5 {[%clk 0:03:00.5]}
2... Qxd5 {[%clk 0:03:00.2]} 3. Nc3 {[%clk 0:03:00.6]} 3... Qd6 {[%clk
0:03:00.4]} 4. Nf3 {[%clk 0:03:00.9]} 4... a6 {[%clk 0:03:00.9]} 5. d4 {[%clk
0:03:01.1]} 5... Nf6 {[%clk 0:03:01.2]} 6. h3 {[%clk 0:03:01]} 6... Bf5 {[%clk
0:03:01.2]} 7. Be2 {[%clk 0:02:59.8]} 7... e6 {[%clk 0:03:01.4]} 8. Be3 {[%clk
0:03:00.1]} 8... Nc6 {[%clk 0:03:01.3]} 9. O-O {[%clk 0:02:59.9]} 9... Be7
{[%clk 0:03:01.4]} 10. Re1 {[%clk 0:02:55]} 10... O-O {[%clk 0:03:00.9]} 11. Qd2
{[%clk 0:02:54.7]} 11... Rad8 {[%clk 0:03:00.5]} 12. Bf4 {[%clk 0:02:51.4]}
12... Qd7 {[%clk 0:02:59.5]} 13. Rad1 {[%clk 0:02:49.5]} 13... Ne4 {[%clk
0:02:57.7]} 14. Nxe4 {[%clk 0:02:46.6]} 14... Bxe4 {[%clk 0:02:57.6]} 15. c3
{[%clk 0:02:43]} 15... Rfe8 {[%clk 0:02:49]} 16. Ne5 {[%clk 0:02:40.4]} 16...
Nxe5 {[%clk 0:02:44.7]} 17. Bxe5 {[%clk 0:02:41.3]} 17... Bc6 {[%clk 0:02:39.9]}
18. a3 {[%clk 0:02:31.5]} 18... Bf8 {[%clk 0:02:36.5]} 19. Qf4 {[%clk
0:02:22.1]} 19... Rc8 {[%clk 0:02:34.1]} 20. Bh5 {[%clk 0:02:15.3]} 20... Bd6
{[%clk 0:02:23.7]} 21. Bxd6 {[%clk 0:02:11.1]} 21... cxd6 {[%clk 0:02:22.3]} 22.
Rd3 {[%clk 0:01:55.8]} 22... Bd5 {[%clk 0:02:10.4]} 23. Rg3 {[%clk 0:01:53.7]}
23... g6 {[%clk 0:01:58.9]} 24. Bf3 {[%clk 0:01:52.8]} 24... Bxf3 {[%clk
0:01:55.1]} 25. Qxf3 {[%clk 0:01:53.3]} 25... d5 {[%clk 0:01:50.8]} 26. h4
{[%clk 0:01:52.5]} 26... Kg7 {[%clk 0:01:40.9]} 27. h5 {[%clk 0:01:52.2]} 27...
Qe7 {[%clk 0:01:36.2]} 28. Qf4 {[%clk 0:01:39]} 28... b5 {[%clk 0:01:15.8]} 29.
Ree3 {[%clk 0:01:36.5]} 29... a5 {[%clk 0:01:12.7]} 30. Ref3 {[%clk 0:01:35.8]}
30... Rf8 {[%clk 0:01:03.8]} 31. Rh3 {[%clk 0:01:22.2]} 31... g5 {[%clk
0:00:52.3]} 32. h6+ {[%clk 0:01:22.4]} 32... Kh8 {[%clk 0:00:52]} 33. Qg4 {[%clk
0:00:45]} 33... f5 {[%clk 0:00:48.5]} 34. Qh5 {[%clk 0:00:45.5]} 34... g4 {[%clk
0:00:45.3]} 35. Rfg3 {[%clk 0:00:44.1]} 35... gxh3 {[%clk 0:00:42.7]} 36. Rg7
{[%clk 0:00:43.6]} 36... Qf6 {[%clk 0:00:41]} 37. Qxh3 {[%clk 0:00:39.1]} 37...
Rg8 {[%clk 0:00:39.3]} 38. Ra7 {[%clk 0:00:37.5]} 38... Rg6 {[%clk 0:00:37]} 39.
Rxa5 {[%clk 0:00:32.8]} 39... Rxh6 {[%clk 0:00:34.3]} 40. Qe3 {[%clk 0:00:32.5]}
40... Qh4 {[%clk 0:00:30.9]} 41. Kf1 {[%clk 0:00:31.2]} 41... Qh1+ {[%clk
0:00:27.3]} 42. Ke2 {[%clk 0:00:31.5]} 42... Qh5+ {[%clk 0:00:25.4]} 43. f3
{[%clk 0:00:30.3]} 43... f4 {[%clk 0:00:18.1]} 44. Qxe6 {[%clk 0:00:28.4]} 44...
Rxe6+ {[%clk 0:00:17.2]} 0-1

[Event "*** Titled Tuesday Blitz"]
[Site "Chess.com"]
[Date "2021.02.16"]
[Round "9"]
[White "grandcoach"]
[Black "korkmaz16"]
[Result "0-1"]
[WhiteElo "2235"]
[BlackElo "2388"]
[TimeControl "180+1"]
[EndTime "11:48:09 PST"]
[Termination "korkmaz16 won by checkmate"]

1. e4 {[%clk 0:03:00.9]} 1... e6 {[%clk 0:02:58.1]} 2. Nf3 {[%clk 0:02:59.5]}
2... c5 {[%clk 0:02:44.4]} 3. b4 {[%clk 0:02:57.4]} 3... cxb4 {[%clk 0:02:43.1]}
4. a3 {[%clk 0:02:57.4]} 4... bxa3 {[%clk 0:02:39.2]} 5. d4 {[%clk 0:02:52.6]}
5... d5 {[%clk 0:02:33]} 6. e5 {[%clk 0:02:51.4]} 6... Nc6 {[%clk 0:02:30.8]} 7.
c3 {[%clk 0:02:51.4]} 7... Nge7 {[%clk 0:02:30]} 8. Bd3 {[%clk 0:02:51]} 8...
Nf5 {[%clk 0:02:29.4]} 9. O-O {[%clk 0:02:44.5]} 9... Be7 {[%clk 0:02:28.9]} 10.
Nxa3 {[%clk 0:02:42.3]} 10... O-O {[%clk 0:02:27.8]} 11. g4 {[%clk 0:02:39.1]}
11... Nh4 {[%clk 0:02:26.4]} 12. Nxh4 {[%clk 0:02:39.1]} 12... Bxh4 {[%clk
0:02:27.3]} 13. g5 {[%clk 0:02:38.4]} 13... Bxg5 {[%clk 0:02:10.9]} 14. Qh5
{[%clk 0:02:38]} 14... h6 {[%clk 0:02:10.5]} 15. f4 {[%clk 0:02:35.2]} 15... Be7
{[%clk 0:02:03.2]} 16. Ra2 {[%clk 0:02:33.9]} 16... f5 {[%clk 0:01:54.7]} 17.
Rg2 {[%clk 0:02:30.8]} 17... Kh8 {[%clk 0:01:45.2]} 18. Rg6 {[%clk 0:02:13]}
18... Kh7 {[%clk 0:01:26.1]} 19. Rf3 {[%clk 0:02:05.3]} 19... Rg8 {[%clk
0:01:24.3]} 20. Rh3 {[%clk 0:01:57.9]} 20... Bf8 {[%clk 0:01:20.9]} 21. Nb5
{[%clk 0:01:52.2]} 21... Bd7 {[%clk 0:01:19.3]} 22. Nd6 {[%clk 0:01:37.8]} 22...
Be8 {[%clk 0:01:17.8]} 23. Rhg3 {[%clk 0:01:33.1]} 23... Bxd6 {[%clk 0:01:09.3]}
24. exd6 {[%clk 0:01:23.4]} 24... Bxg6 {[%clk 0:01:08.8]} 25. Qxg6+ {[%clk
0:01:22.8]} 25... Kh8 {[%clk 0:01:09.1]} 26. Qxe6 {[%clk 0:01:19.9]} 26... Qf6
{[%clk 0:00:45.2]} 27. Qxd5 {[%clk 0:01:19.5]} 27... Rad8 {[%clk 0:00:39.1]} 28.
Ba3 {[%clk 0:01:05.5]} 28... Rge8 {[%clk 0:00:37.7]} 29. Qxf5 {[%clk 0:00:57.2]}
29... Qxf5 {[%clk 0:00:32.3]} 30. Bxf5 {[%clk 0:00:58.1]} 30... Re1+ {[%clk
0:00:32.2]} 31. Kf2 {[%clk 0:00:57.3]} 31... Ra1 {[%clk 0:00:32.8]} 32. c4
{[%clk 0:00:34]} 32... Nxd4 {[%clk 0:00:29.3]} 33. Be4 {[%clk 0:00:15.4]} 33...
Ra2+ {[%clk 0:00:28.1]} 34. Kf1 {[%clk 0:00:11]} 34... Ne2 {[%clk 0:00:20.6]}
35. Rd3 {[%clk 0:00:08.6]} 35... Nxf4 {[%clk 0:00:19.6]} 36. Rb3 {[%clk
0:00:06.7]} 36... b6 {[%clk 0:00:17.7]} 37. Bb2 {[%clk 0:00:05.8]} 37... Rxd6
{[%clk 0:00:16.4]} 38. Be5 {[%clk 0:00:05.9]} 38... Rd1# {[%clk 0:00:16.3]} 0-1

[Event "*** Titled Tuesday Blitz"]
[Site "Chess.com"]
[Date "2021.02.16"]
[Round "9"]
[White "harlem4brew"]
[Black "Grimlock_Glasgow"]
[Result "0-1"]
[WhiteElo "2308"]
[BlackElo "2440"]
[TimeControl "180+1"]
[EndTime "11:48:10 PST"]
[Termination "Grimlock_Glasgow won by resignation"]

1. e4 {[%clk 0:03:00.9]} 1... e5 {[%clk 0:02:59.5]} 2. Nf3 {[%clk 0:03:00.2]}
2... d5 {[%clk 0:02:59.3]} 3. exd5 {[%clk 0:02:57.6]} 3... Bd6 {[%clk
0:02:59.5]} 4. Qe2 {[%clk 0:02:52.7]} 4... Nf6 {[%clk 0:02:54.8]} 5. Nxe5 {[%clk
0:02:48.8]} 5... O-O {[%clk 0:02:54]} 6. d4 {[%clk 0:02:44.2]} 6... Nxd5 {[%clk
0:02:42.5]} 7. g3 {[%clk 0:02:35.8]} 7... Nc6 {[%clk 0:02:17.1]} 8. Nxc6 {[%clk
0:02:25.2]} 8... bxc6 {[%clk 0:02:18]} 9. Be3 {[%clk 0:02:22.5]} 9... Rb8 {[%clk
0:01:59.5]} 10. c3 {[%clk 0:02:14.3]} 10... f5 {[%clk 0:01:46.1]} 11. c4 {[%clk
0:01:44.8]} 11... Ba6 {[%clk 0:01:16.1]} 12. Nc3 {[%clk 0:01:34.2]} 12... f4
{[%clk 0:01:05.8]} 13. Nxd5 {[%clk 0:01:12.7]} 13... cxd5 {[%clk 0:01:03.1]} 14.
gxf4 {[%clk 0:01:12.3]} 14... Bxc4 {[%clk 0:00:55.8]} 15. Qc2 {[%clk 0:01:06.3]}
15... Bxf1 {[%clk 0:00:42.8]} 16. Rxf1 {[%clk 0:01:03.9]} 16... Bb4+ {[%clk
0:00:37.1]} 17. Kd1 {[%clk 0:01:02.4]} 17... Qd7 {[%clk 0:00:28.6]} 18. a3
{[%clk 0:00:55.7]} 18... Bd6 {[%clk 0:00:27.8]} 19. Rc1 {[%clk 0:00:53]} 19...
Qh3 {[%clk 0:00:23.3]} 20. Re1 {[%clk 0:00:34.8]} 20... Bxf4 {[%clk 0:00:20.4]}
21. Bxf4 {[%clk 0:00:28.4]} 21... Rxf4 {[%clk 0:00:21.3]} 22. Qd2 {[%clk
0:00:23.9]} 22... Qf5 {[%clk 0:00:15.7]} 23. Re2 {[%clk 0:00:21.1]} 23... Qg4
{[%clk 0:00:14.1]} 24. Rxc7 {[%clk 0:00:18]} 24... Rxd4 {[%clk 0:00:13.8]} 25.
f3 {[%clk 0:00:12.5]} 25... Rxd2+ {[%clk 0:00:13.2]} 26. Rxd2 {[%clk 0:00:11.8]}
26... Qxf3+ {[%clk 0:00:13.1]} 27. Kc2 {[%clk 0:00:12.7]} 27... Qe4+ {[%clk
0:00:12.8]} 28. Kc1 {[%clk 0:00:12.7]} 28... Qe1+ {[%clk 0:00:12.5]} 29. Kc2
{[%clk 0:00:11.9]} 29... Rxb2+ {[%clk 0:00:11.3]} 30. Kxb2 {[%clk 0:00:11.4]}
30... Qxd2+ {[%clk 0:00:12.2]} 31. Rc2 {[%clk 0:00:11.7]} 31... Qd4+ {[%clk
0:00:11.8]} 32. Kb3 {[%clk 0:00:12.5]} 32... Qb6+ {[%clk 0:00:11.7]} 33. Kc3
{[%clk 0:00:13.3]} 33... Qc5+ {[%clk 0:00:11.5]} 34. Kd3 {[%clk 0:00:13.8]}
34... Qxa3+ {[%clk 0:00:10.8]} 35. Rc3 {[%clk 0:00:14.7]} 35... Qxc3+ {[%clk
0:00:10.7]} 36. Kxc3 {[%clk 0:00:14.7]} 36... a5 {[%clk 0:00:11.2]} 37. Kd4
{[%clk 0:00:14.9]} 37... a4 {[%clk 0:00:11]} 38. Kxd5 {[%clk 0:00:15.8]} 38...
a3 {[%clk 0:00:10.1]} 39. Kc4 {[%clk 0:00:16.7]} 39... a2 {[%clk 0:00:11]} 0-1

[Event "*** Titled Tuesday Blitz"]
[Site "Chess.com"]
[Date "2021.02.16"]
[Round "9"]
[White "Julianos82"]
[Black "crazy_but_lazy"]
[Result "0-1"]
[WhiteElo "2352"]
[BlackElo "2493"]
[TimeControl "180+1"]
[EndTime "11:48:11 PST"]
[Termination "crazy_but_lazy won by resignation"]

1. d4 {[%clk 0:03:00.9]} 1... Nf6 {[%clk 0:02:59.9]} 2. Nf3 {[%clk 0:03:00.6]}
2... b6 {[%clk 0:02:58.5]} 3. Bg5 {[%clk 0:02:59.8]} 3... Bb7 {[%clk 0:02:58.2]}
4. Nbd2 {[%clk 0:02:58.9]} 4... e6 {[%clk 0:02:50.2]} 5. e3 {[%clk 0:02:58.7]}
5... h6 {[%clk 0:02:50.1]} 6. Bh4 {[%clk 0:02:58.1]} 6... d6 {[%clk 0:02:48.5]}
7. Bd3 {[%clk 0:02:55.3]} 7... Nbd7 {[%clk 0:02:47.1]} 8. e4 {[%clk 0:02:53.2]}
8... Be7 {[%clk 0:02:43]} 9. Qe2 {[%clk 0:02:48.4]} 9... O-O {[%clk 0:02:30.5]}
10. c3 {[%clk 0:02:33.9]} 10... e5 {[%clk 0:02:20.6]} 11. O-O-O {[%clk
0:02:18.8]} 11... Nh7 {[%clk 0:01:37.3]} 12. Bg3 {[%clk 0:02:07.4]} 12... exd4
{[%clk 0:01:32.5]} 13. Nxd4 {[%clk 0:01:57.8]} 13... Nc5 {[%clk 0:01:22.1]} 14.
Bc4 {[%clk 0:01:49.1]} 14... Bf6 {[%clk 0:01:06.5]} 15. f3 {[%clk 0:01:18.8]}
15... Re8 {[%clk 0:00:53.2]} 16. Qf2 {[%clk 0:01:17.5]} 16... d5 {[%clk
0:00:48.7]} 17. exd5 {[%clk 0:01:09.5]} 17... Bxd5 {[%clk 0:00:48.2]} 18. Kb1
{[%clk 0:01:05.5]} 18... Bxc4 {[%clk 0:00:35.6]} 19. Nxc4 {[%clk 0:01:06.4]}
19... Qd5 {[%clk 0:00:36]} 20. Ne3 {[%clk 0:00:57.5]} 20... Qh5 {[%clk
0:00:29.4]} 21. Rhe1 {[%clk 0:00:52.4]} 21... Ng5 {[%clk 0:00:17.1]} 22. Nef5
{[%clk 0:00:50.4]} 22... Qg6 {[%clk 0:00:14.3]} 23. Ka1 {[%clk 0:00:43.6]} 23...
Nge6 {[%clk 0:00:14.6]} 24. Nxe6 {[%clk 0:00:36.3]} 24... fxe6 {[%clk
0:00:14.3]} 25. Nh4 {[%clk 0:00:27.3]} 25... Bxh4 {[%clk 0:00:14.4]} 26. Bxh4
{[%clk 0:00:28.2]} 26... Nd3 {[%clk 0:00:14.7]} 27. Qe3 {[%clk 0:00:22.9]} 27...
Nxe1 {[%clk 0:00:14.9]} 28. Rxe1 {[%clk 0:00:23.8]} 28... Qf5 {[%clk 0:00:14]}
29. Bg3 {[%clk 0:00:23.1]} 29... Rad8 {[%clk 0:00:12.5]} 30. Be5 {[%clk
0:00:22.7]} 30... Rd3 {[%clk 0:00:12.3]} 31. Qe2 {[%clk 0:00:22.5]} 31... Red8
{[%clk 0:00:12.4]} 32. a3 {[%clk 0:00:22.2]} 32... Rd2 {[%clk 0:00:12.3]} 33.
Qe3 {[%clk 0:00:22.4]} 33... Qc2 {[%clk 0:00:12.6]} 34. c4 {[%clk 0:00:20.4]}
34... Rd1+ {[%clk 0:00:09.5]} 35. Rxd1 {[%clk 0:00:20]} 35... Rxd1+ {[%clk
0:00:10.4]} 36. Ka2 {[%clk 0:00:19.7]} 36... Rd3 {[%clk 0:00:10.8]} 37. Qe4
{[%clk 0:00:16.1]} 37... Qb3+ {[%clk 0:00:10.7]} 38. Ka1 {[%clk 0:00:14.9]}
38... Rd1+ {[%clk 0:00:11.6]} 39. Qb1 {[%clk 0:00:14.7]} 39... Rxb1+ {[%clk
0:00:12.5]} 40. Kxb1 {[%clk 0:00:15.5]} 40... Qxc4 {[%clk 0:00:12.3]} 0-1

[Event "*** Titled Tuesday Blitz"]
[Site "Chess.com"]
[Date "2021.02.16"]
[Round "9"]
[White "HackingKid98"]
[Black "Nikolakis2014"]
[Result "0-1"]
[WhiteElo "2478"]
[BlackElo "2652"]
[TimeControl "180+1"]
[EndTime "11:48:19 PST"]
[Termination "Nikolakis2014 won on time"]

1. d4 {[%clk 0:03:00.9]} 1... Nf6 {[%clk 0:02:59.5]} 2. c4 {[%clk 0:02:59.9]}
2... g6 {[%clk 0:02:59.6]} 3. g3 {[%clk 0:02:59.9]} 3... Bg7 {[%clk 0:02:59.7]}
4. Bg2 {[%clk 0:03:00.1]} 4... O-O {[%clk 0:02:59.9]} 5. Nf3 {[%clk 0:03:01]}
5... d6 {[%clk 0:03:00.3]} 6. O-O {[%clk 0:03:00.7]} 6... Nbd7 {[%clk
0:03:00.6]} 7. Nc3 {[%clk 0:03:00.3]} 7... e5 {[%clk 0:03:00.9]} 8. e4 {[%clk
0:03:00.6]} 8... exd4 {[%clk 0:03:00.2]} 9. Nxd4 {[%clk 0:03:00.5]} 9... Re8
{[%clk 0:03:00.5]} 10. f3 {[%clk 0:02:53]} 10... a6 {[%clk 0:03:00]} 11. Be3
{[%clk 0:02:51.8]} 11... Rb8 {[%clk 0:02:58.1]} 12. Qc2 {[%clk 0:02:49]} 12...
Ne5 {[%clk 0:02:56.1]} 13. b3 {[%clk 0:02:43.7]} 13... c5 {[%clk 0:02:56.1]} 14.
Nde2 {[%clk 0:02:43.6]} 14... b5 {[%clk 0:02:56.3]} 15. cxb5 {[%clk 0:02:42.2]}
15... axb5 {[%clk 0:02:55.9]} 16. Rad1 {[%clk 0:02:42.1]} 16... b4 {[%clk
0:02:45.8]} 17. Na4 {[%clk 0:02:15.7]} 17... Qc7 {[%clk 0:02:43.1]} 18. Nf4
{[%clk 0:02:04.2]} 18... Bb7 {[%clk 0:02:30.3]} 19. Rf2 {[%clk 0:01:34.6]} 19...
Red8 {[%clk 0:02:09.6]} 20. Rfd2 {[%clk 0:01:29]} 20... Ra8 {[%clk 0:02:07.7]}
21. Bf2 {[%clk 0:01:17.2]} 21... Bc6 {[%clk 0:02:02.8]} 22. Nd3 {[%clk
0:01:01.1]} 22... Nxd3 {[%clk 0:01:54.3]} 23. Rxd3 {[%clk 0:00:57.1]} 23... Bxa4
{[%clk 0:01:35.9]} 24. bxa4 {[%clk 0:00:58]} 24... c4 {[%clk 0:01:19.2]} 25. Rd4
{[%clk 0:00:44]} 25... Rdc8 {[%clk 0:01:08.4]} 26. Bf1 {[%clk 0:00:36.6]} 26...
c3 {[%clk 0:00:52.2]} 27. Rxb4 {[%clk 0:00:32.9]} 27... Nd7 {[%clk 0:00:52.3]}
28. Rc4 {[%clk 0:00:22.9]} 28... Qa5 {[%clk 0:00:35.3]} 29. Rxc8+ {[%clk
0:00:19.1]} 29... Rxc8 {[%clk 0:00:35.4]} 30. Bh3 {[%clk 0:00:16]} 30... Qc7
{[%clk 0:00:29.9]} 31. Kg2 {[%clk 0:00:09.3]} 31... Rb8 {[%clk 0:00:30.1]} 32.
a5 {[%clk 0:00:08.1]} 32... Rb2 {[%clk 0:00:29.1]} 33. Qd3 {[%clk 0:00:07.9]}
33... c2 {[%clk 0:00:22.6]} 34. Rc1 {[%clk 0:00:07]} 34... Ne5 {[%clk
0:00:22.7]} 35. Qd5 {[%clk 0:00:04.8]} 35... h5 {[%clk 0:00:19.8]} 36. a6 {[%clk
0:00:04]} 36... Nc6 {[%clk 0:00:20]} 37. a7 {[%clk 0:00:03.6]} 37... Nxa7 {[%clk
0:00:20.1]} 38. Bxa7 {[%clk 0:00:02.7]} 38... Qxa7 {[%clk 0:00:19.6]} 39. Qxd6
{[%clk 0:00:03.6]} 39... Qe3 {[%clk 0:00:18.3]} 0-1